[Event "94th Paris-ch  2019"]
[Site "Paris"]
[Date "2019.07.08"]
[Round "3.21"]
[White "Lutard, Theo"]
[Black "Materia, Marco"]
[Result "0-1"]
[ECO "C55"]
[WhiteElo "2222"]
[BlackElo "2243"]
[Annotator "NA"]
[PlyCount "112"]
[EventDate "2019.07.07"]
[EventType "swiss"]
[EventCountry "FRA"]
[SourceTitle "playchess.com"]
[Source "ChessBase"]
[SourceQuality "1"]
[TimeControl "5400+30"]

1. e4 {[%emt 0:00:00]} e5 {[%emt 0:00:00]} 2. Nf3 {[%emt 0:00:00]} Nc6 {[%emt 0:00:00]} 3. Bc4 {[%emt 0:00:00]} Nf6 {[%emt 0:00:00]} 4. d3 {[%emt 0:00:02]} Be7 {[%emt 0:00:00]} 5. O-O {[%emt 0:00:08]} O-O {[%emt 0:00:49]} 6. Re1 {[%emt 0:01:12]} d6 {[%emt 0:00:29]} 7. a4 {[%emt 0:00:18]} Kh8 {[%emt 0:01:54]} 8. h3 {[%emt 0:01:12]} Ng8 {[%emt 0:01:06]} 9. a5 {[%emt 0:00:42]} a6 {[%emt 0:00:49]} 10. Nc3 {[%emt 0:00:35]} f5 {[%emt 0:01:13]} 11. Nd5 {[%emt 0:00:18]} Bf6 {[%emt 0:17:36]} 12. c3 {[%emt 0:01:01]} Nce7 {[%emt 0:02:55]} 13. Nxf6 {[%emt 0:15:01]} Nxf6 {[%emt 0:01:05]} 14. Ng5 {[%emt 0:09:55]} Qe8 {[%emt 0:01:25]} 15. Qb3 {[%emt 0:15:25]} h6 {[%emt 0:02:31]} 16. Ne6 {[%emt 0:01:42]} Bxe6 {[%emt 0:01:29]} 17. Bxe6 {[%emt 0:00:07]} fxe4 {[%emt 0:17:45]} 18. dxe4 {[%emt 0:08:18]} Rb8 {[%emt 0:02:29]} 19. Ra4 {[%emt 0:09:34]} Nh5 {[%emt 0:08:24]} 20. Bg4 {[%emt 0:09:47]} Nf4 {[%emt 0:03:20]} 21. Bxf4 {[%emt 0:04:02]} exf4 {[%emt 0:02:19]} 22. Rb4 {[%emt 0:05:27]} Nc6 {[%emt 0:00:51]} 23. Rxb7 {[%emt 0:01:23]} Nxa5 {[%emt 0:00:37]} 24. Rxb8 {[%emt 0:00:06]} Nxb3 {[%emt 0:01:11]} 25. Rxe8 {[%emt 0:00:07]} Rxe8 {[%emt 0:00:08]} 26. Bd1 {[%emt 0:03:24]} Nc5 {[%emt 0:02:42]} 27. Bc2 {[%emt 0:01:22]} a5 {[%emt 0:01:09]} 28. Ra1 {[%emt 0:03:27]} a4 {[%emt 0:01:33]} 29. f3 {[%emt 0:01:54]} Rb8 {[%emt 0:02:22]} 30. Ra2 {[%emt 0:00:23]} Kg8 {[%emt 0:00:54]} 31. Kf1 {[%emt 0:03:34]} Kf8 {[%emt 0:01:48]} 32. Ke1 {[%emt 0:01:11]} Ke7 {[%emt 0:00:54]} 33. Kf2 {[%emt 0:02:53]} Kf6 {[%emt 0:00:52]} 34. g3 {[%emt 0:01:14]} Ke5 {[%emt 0:01:00]} 35. Kg2 {[%emt 0:00:12]} c6 {[%emt 0:04:47]} 36. h4 {[%emt 0:00:08]} g5 {[%emt 0:09:53]} 37. hxg5 {[%emt 0:00:04]} hxg5 {[%emt 0:00:44]} 38. Kh3 {[%emt 0:02:01]} g4+ {[%emt 0:04:48]} 39. Kg2 {[%emt 0:00:04]} Rg8 {[%emt 0:02:59]} 40. gxf4+ {[%emt 0:00:38]} Kxf4 {[%emt 0:00:08]} 41. fxg4 {[%emt 0:00:16]} Rxg4+ {[%emt 0:00:50]} 42. Kf2 {[%emt 0:00:22]} Rg8 {[%emt 0:00:41]} 43. Bxa4 {[%emt 0:01:21]} Nxe4+ {[%emt 0:00:13]} 44. Ke2 {[%emt 0:00:21]} Nxc3+ {[%emt 0:00:06]} 45. bxc3 {[%emt 0:00:21]} Rg2+ {[%emt 0:00:05]} 46. Kd3 {[%emt 0:00:03]} Rxa2 {[%emt 0:00:05]} 47. Bxc6 {[%emt 0:00:03]} Ke5 {[%emt 0:00:21]} 48. c4 {[%emt 0:01:31]} Ra3+ {[%emt 0:00:08]} 49. Kc2 {[%emt 0:00:15]} Kd4 {[%emt 0:00:06]} 50. Bd5 {[%emt 0:00:35]} Rc3+ {[%emt 0:00:16]} 51. Kd2 {[%emt 0:00:14]} Rxc4 {[%emt 0:00:23]} 52. Bxc4 {[%emt 0:00:04]} Kxc4 {[%emt 0:00:05]} 53. Kc1 {[%emt 0:00:38]} Kc3 {[%emt 0:00:09]} 54. Kd1 {[%emt 0:00:05]} d5 {[%emt 0:00:07]} 55. Kc1 {[%emt 0:00:07]} d4 {[%emt 0:00:05]} 56. Kd1 {[%emt 0:00:05]} Kd3 {[%emt 0:00:04]} 0-1

[Event "94th Paris-ch  2019"]
[Site "Paris"]
[Date "2019.07.09"]
[Round "4.1"]
[White "Moussard, Jules"]
[Black "Abergel, Thal"]
[Result "1-0"]
[ECO "C77"]
[WhiteElo "2576"]
[BlackElo "2450"]
[Annotator "ChessBase"]
[PlyCount "93"]
[EventDate "2019.07.07"]
[EventType "swiss"]
[EventCountry "FRA"]
[SourceTitle "playchess.com"]
[Source "ChessBase"]
[SourceQuality "1"]
[TimeControl "5400+30"]

1. e4 {[%emt 0:05:15]} e5 {[%emt 0:00:08]} 2. Nf3 {[%emt 0:01:02]} Nc6 {[%emt 0:00:06]} 3. Bb5 {[%emt 0:00:29]} a6 {[%emt 0:00:16]} 4. Ba4 {[%emt 0:00:14]} Nf6 {[%emt 0:00:08]} 5. Bxc6 {[%emt 0:01:30]} dxc6 {[%emt 0:00:21]} 6. d3 {[%emt 0:00:25]} Qd6 {[%emt 0:06:06]} 7. Qe2 {[%emt 0:05:18]} Nd7 {[%emt 0:05:53]} 8. Nbd2 {[%emt 0:05:28]} Be7 {[%emt 0:00:41]} 9. Nc4 {[%emt 0:03:14]} Qe6 {[%emt 0:00:38]} 10. d4 {[%emt 0:00:59]} f6 {[%emt 0:06:41]} 11. dxe5 {[%emt 0:03:24]} fxe5 {[%emt 0:00:08]} 12. b3 {[%emt 0:03:47]} O-O {[%emt 0:02:37]} 13. O-O {[%emt 0:05:24]} a5 {[%emt 0:07:45]} 14. Bb2 {[%emt 0:05:47]} Bf6 {[%emt 0:00:40]} 15. Rad1 {[%emt 0:05:40]} b6 {[%emt 0:01:15]} 16. Qd2 {[%emt 0:00:21]} Rf7 {[%emt 0:01:59]} 17. Rfe1 {[%emt 0:10:28]} Ba6 {[%emt 0:02:11]} 18. Ne3 {[%emt 0:03:42]} Nc5 {[%emt 0:00:13]} 19. Nf5 {[%emt 0:01:35]} Nxe4 {[%emt 0:06:07]} 20. Nh6+ {[%emt 0:06:16]} gxh6 {[%emt 0:00:11]} 21. Rxe4 {[%emt 0:00:04]} Rd8 {[%emt 0:04:47]} 22. Qe1 {[%emt 0:02:04]} Rxd1 {[%emt 0:05:06]} 23. Qxd1 {[%emt 0:00:04]} Rd7 {[%emt 0:00:36]} 24. Qe1 {[%emt 0:00:28]} Qd5 {[%emt 0:05:35]} 25. Bxe5 {[%emt 0:00:22]} Bxe5 {[%emt 0:04:22]} 26. Rxe5 {[%emt 0:00:08]} Qd1 {[%emt 0:00:06]} 27. Re8+ {[%emt 0:00:23]} Kf7 {[%emt 0:00:45]} 28. Re7+ {[%emt 0:00:07]} Kg8 {[%emt 0:01:09]} 29. Rxd7 {[%emt 0:00:13]} Qxd7 {[%emt 0:00:06]} 30. Ne5 {[%emt 0:01:48]} Qd6 {[%emt 0:01:53]} 31. h3 {[%emt 0:01:11]} Bc8 {[%emt 0:06:48]} 32. Qe4 {[%emt 0:01:26]} Qd5 {[%emt 0:03:31]} 33. Qf4 {[%emt 0:00:51]} Be6 {[%emt 0:00:57]} 34. Qf6 {[%emt 0:01:27]} Qd6 {[%emt 0:05:24]} 35. c4 {[%emt 0:00:41]} a4 {[%emt 0:04:04]} 36. bxa4 {[%emt 0:01:29]} c5 {[%emt 0:00:58]} 37. a3 {[%emt 0:01:34]} h5 {[%emt 0:00:20]} 38. Kh2 {[%emt 0:02:48]} h6 {[%emt 0:02:08]} 39. Qg6+ {[%emt 0:03:39]} Kf8 {[%emt 0:00:05]} 40. Qxh6+ {[%emt 0:00:04]} Ke7 {[%emt 0:00:09]} 41. f4 {[%emt 0:00:37]} Qd2 {[%emt 0:01:27]} 42. Qg7+ {[%emt 0:00:44]} Ke8 {[%emt 0:00:09]} 43. Ng6 {[%emt 0:01:41]} Qd6 {[%emt 0:00:55]} 44. Qh8+ {[%emt 0:00:03]} Kf7 {[%emt 0:00:27]} 45. Ne5+ {[%emt 0:00:10]} Ke7 {[%emt 0:00:06]} 46. Qxh5 {[%emt 0:00:13]} Qd4 {[%emt 0:00:06]} 47. Nc6+ {[%emt 0:00:04]} 1-0

[Event "94th Paris-ch  2019"]
[Site "Paris"]
[Date "2019.07.09"]
[Round "4.2"]
[White "Shchekachev, Andrei"]
[Black "Samoun, Florent"]
[Result "1/2-1/2"]
[ECO "E06"]
[WhiteElo "2531"]
[BlackElo "2230"]
[Annotator "ChessBase"]
[PlyCount "125"]
[EventDate "2019.07.07"]
[EventType "swiss"]
[EventCountry "FRA"]
[SourceTitle "playchess.com"]
[Source "ChessBase"]
[SourceQuality "1"]
[TimeControl "5400+30"]

1. Nf3 {[%emt 0:08:56]} e6 {[%emt 0:00:32]} 2. c4 {[%emt 0:02:40]} Nf6 {[%emt 0:00:17]} 3. Nc3 {[%emt 0:02:33]} d5 {[%emt 0:00:23]} 4. d4 {[%emt 0:00:43]} c6 {[%emt 0:00:24]} 5. g3 {[%emt 0:00:59]} Be7 {[%emt 0:04:24]} 6. Bg2 {[%emt 0:03:13]} O-O {[%emt 0:00:28]} 7. O-O {[%emt 0:00:45]} b6 {[%emt 0:07:47]} 8. Ne5 {[%emt 0:15:26]} Bb7 {[%emt 0:04:50]} 9. e4 {[%emt 0:05:33]} Nbd7 {[%emt 0:27:03]} 10. Nxc6 {[%emt 0:02:54]} Bxc6 {[%emt 0:00:45]} 11. exd5 {[%emt 0:00:10]} exd5 {[%emt 0:01:32]} 12. cxd5 {[%emt 0:00:06]} Bb7 {[%emt 0:01:27]} 13. d6 {[%emt 0:00:09]} Bxg2 {[%emt 0:00:36]} 14. dxe7 {[%emt 0:00:06]} Qxe7 {[%emt 0:00:06]} 15. Kxg2 {[%emt 0:00:47]} Rfd8 {[%emt 0:00:54]} 16. Qf3 {[%emt 0:07:17]} h6 {[%emt 0:03:25]} 17. a3 {[%emt 0:12:50]} Nf8 {[%emt 0:08:15]} 18. Rd1 {[%emt 0:02:49]} Rac8 {[%emt 0:02:21]} 19. Be3 {[%emt 0:00:33]} Rd7 {[%emt 0:02:58]} 20. Rac1 {[%emt 0:11:22]} Rcd8 {[%emt 0:02:25]} 21. h4 {[%emt 0:03:45]} Nd5 {[%emt 0:02:03]} 22. Nxd5 {[%emt 0:04:59]} Rxd5 {[%emt 0:00:12]} 23. Rc8 {[%emt 0:01:29]} Qd7 {[%emt 0:12:52]} 24. Rdc1 {[%emt 0:07:49]} Rxc8 {[%emt 0:03:51]} 25. Rxc8 {[%emt 0:00:03]} Rxd4 {[%emt 0:01:22]} 26. Qa8 {[%emt 0:01:24]} Qd5+ {[%emt 0:00:09]} 27. Kh2 {[%emt 0:00:50]} Qxa8 {[%emt 0:00:07]} 28. Rxa8 {[%emt 0:00:03]} Rd7 {[%emt 0:00:17]} 29. a4 {[%emt 0:00:08]} f6 {[%emt 0:01:42]} 30. a5 {[%emt 0:00:58]} Kf7 {[%emt 0:03:27]} 31. axb6 {[%emt 0:01:06]} axb6 {[%emt 0:00:05]} 32. Rb8 {[%emt 0:00:11]} Rd5 {[%emt 0:02:29]} 33. Rxb6 {[%emt 0:00:15]} g5 {[%emt 0:00:45]} 34. b4 {[%emt 0:05:57]} Nd7 {[%emt 0:01:24]} 35. Rb7 {[%emt 0:01:43]} Ke6 {[%emt 0:00:50]} 36. Kg2 {[%emt 0:00:31]} gxh4 {[%emt 0:03:49]} 37. gxh4 {[%emt 0:00:10]} h5 {[%emt 0:00:05]} 38. b5 {[%emt 0:01:08]} Ne5 {[%emt 0:02:32]} 39. Ba7 {[%emt 0:02:12]} Nd7 {[%emt 0:00:55]} 40. b6 {[%emt 0:02:54]} Rb5 {[%emt 0:00:12]} 41. Rc7 {[%emt 0:00:15]} Kd6 {[%emt 0:00:26]} 42. Rc8 {[%emt 0:00:17]} Rb2 {[%emt 0:00:50]} 43. Rh8 {[%emt 0:00:59]} Nxb6 {[%emt 0:00:27]} 44. Rxh5 {[%emt 0:00:20]} Nd5 {[%emt 0:00:26]} 45. Kg3 {[%emt 0:00:14]} Ke6 {[%emt 0:00:23]} 46. f3 {[%emt 0:00:52]} Rc2 {[%emt 0:00:51]} 47. Rh7 {[%emt 0:00:25]} Ne7 {[%emt 0:00:23]} 48. Rh8 {[%emt 0:00:56]} Nf5+ {[%emt 0:00:41]} 49. Kh3 {[%emt 0:00:06]} Rc1 {[%emt 0:00:26]} 50. h5 {[%emt 0:00:40]} Kf7 {[%emt 0:00:37]} 51. Rh7+ {[%emt 0:00:28]} Kg8 {[%emt 0:00:27]} 52. Rb7 {[%emt 0:00:33]} Rh1+ {[%emt 0:00:15]} 53. Kg4 {[%emt 0:00:22]} Nh6+ {[%emt 0:00:06]} 54. Kf4 {[%emt 0:00:09]} Rh4+ {[%emt 0:00:44]} 55. Ke3 {[%emt 0:00:06]} Rxh5 {[%emt 0:00:12]} 56. f4 {[%emt 0:00:26]} Ra5 {[%emt 0:00:52]} 57. Bb8 {[%emt 0:00:38]} Nf7 {[%emt 0:00:57]} 58. Ke4 {[%emt 0:00:16]} Kg7 {[%emt 0:00:18]} 59. Bc7 {[%emt 0:00:19]} Ra4+ {[%emt 0:00:35]} 60. Kf5 {[%emt 0:00:42]} Nh6+ {[%emt 0:00:13]} 61. Ke6 {[%emt 0:00:05]} Kg6 {[%emt 0:00:35]} 62. Rb1 {[%emt 0:01:32]} Re4+ {[%emt 0:00:25]} 63. Kd5 {[%emt 0:00:04]} 1/2-1/2

[Event "94th Paris-ch  2019"]
[Site "Paris"]
[Date "2019.07.09"]
[Round "4.4"]
[White "Guilleux, Fabien"]
[Black "Flom, Gabriel"]
[Result "0-1"]
[ECO "E92"]
[WhiteElo "2442"]
[BlackElo "2494"]
[Annotator "ChessBase"]
[PlyCount "84"]
[EventDate "2019.07.07"]
[EventType "swiss"]
[EventCountry "FRA"]
[SourceTitle "playchess.com"]
[Source "ChessBase"]
[SourceQuality "1"]
[TimeControl "5400+30"]

1. Nf3 {[%emt 0:08:53]} Nf6 {[%emt 0:00:13]} 2. c4 {[%emt 0:00:12]} g6 {[%emt 0:00:42]} 3. Nc3 {[%emt 0:00:13]} Bg7 {[%emt 0:00:05]} 4. e4 {[%emt 0:00:28]} d6 {[%emt 0:00:18]} 5. d4 {[%emt 0:00:11]} O-O {[%emt 0:00:05]} 6. h3 {[%emt 0:00:24]} e5 {[%emt 0:02:49]} 7. d5 {[%emt 0:00:18]} Na6 {[%emt 0:00:38]} 8. Bg5 {[%emt 0:00:48]} c6 {[%emt 0:00:41]} 9. Be2 {[%emt 0:08:28]} h6 {[%emt 0:03:26]} 10. Be3 {[%emt 0:00:11]} Nc5 {[%emt 0:03:03]} 11. Nd2 {[%emt 0:09:31]} a5 {[%emt 0:00:23]} 12. O-O {[%emt 0:00:11]} Nfd7 {[%emt 0:08:33]} 13. Nb3 {[%emt 0:09:03]} Nxb3 {[%emt 0:03:23]} 14. Qxb3 {[%emt 0:02:14]} c5 {[%emt 0:00:31]} 15. Nb5 {[%emt 0:03:42]} Ra6 {[%emt 0:02:03]} 16. Qc2 {[%emt 0:08:00]} f5 {[%emt 0:00:06]} 17. exf5 {[%emt 0:00:07]} gxf5 {[%emt 0:00:07]} 18. f4 {[%emt 0:00:13]} e4 {[%emt 0:05:48]} 19. Kh2 {[%emt 0:06:19]} Nf6 {[%emt 0:01:05]} 20. g3 {[%emt 0:00:49]} Bd7 {[%emt 0:03:54]} 21. a4 {[%emt 0:04:46]} h5 {[%emt 0:06:37]} 22. Rg1 {[%emt 0:04:46]} Kf7 {[%emt 0:00:47]} 23. Rg2 {[%emt 0:02:22]} Rh8 {[%emt 0:01:29]} 24. Rh1 {[%emt 0:00:47]} Qe7 {[%emt 0:01:40]} 25. Kg1 {[%emt 0:02:25]} Raa8 {[%emt 0:03:06]} 26. Kf1 {[%emt 0:00:29]} Bxb5 {[%emt 0:00:43]} 27. axb5 {[%emt 0:01:48]} a4 {[%emt 0:01:02]} 28. Kf2 {[%emt 0:02:00]} a3 {[%emt 0:00:11]} 29. bxa3 {[%emt 0:00:12]} Rxa3 {[%emt 0:00:09]} 30. Rd1 {[%emt 0:02:22]} Nd7 {[%emt 0:08:05]} 31. Rd2 {[%emt 0:07:04]} h4 {[%emt 0:16:05]} 32. g4 {[%emt 0:02:28]} Rxe3 {[%emt 0:02:23]} 33. Kxe3 {[%emt 0:00:12]} Bd4+ {[%emt 0:00:02]} 34. Rxd4 {[%emt 0:00:15]} cxd4+ {[%emt 0:00:02]} 35. Kxd4 {[%emt 0:01:39]} Ra8 {[%emt 0:00:09]} 36. Ke3 {[%emt 0:01:45]} Ra3+ {[%emt 0:01:01]} 37. Kf2 {[%emt 0:00:09]} Qf6 {[%emt 0:03:27]} 38. Qd1 {[%emt 0:01:17]} Qc3 {[%emt 0:07:55]} 39. gxf5 {[%emt 0:01:18]} Ra1 {[%emt 0:01:36]} 40. Bh5+ {[%emt 0:00:19]} Kf8 {[%emt 0:00:06]} 41. Qe2 {[%emt 0:00:41]} Qd4+ {[%emt 0:00:44]} 42. Qe3 {[%emt 0:00:02]} Rf1+ {[%emt 0:00:05]} 0-1

[Event "94th Paris-ch  2019"]
[Site "Paris"]
[Date "2019.07.09"]
[Round "4.5"]
[White "Bergez, Luc"]
[Black "Bharath Subramaniyam H"]
[Result "1-0"]
[ECO "B40"]
[WhiteElo "2308"]
[BlackElo "2405"]
[Annotator "NA"]
[PlyCount "59"]
[EventDate "2019.07.07"]
[EventType "swiss"]
[EventCountry "FRA"]
[SourceTitle "playchess.com"]
[Source "ChessBase"]
[SourceQuality "1"]
[TimeControl "5400+30"]

1. e4 {[%emt 0:13:17]} c5 {[%emt 0:00:14]} 2. Nf3 {[%emt 0:00:13]} e6 {[%emt 0:00:08]} 3. b3 {[%emt 0:00:11]} b6 {[%emt 0:04:33]} 4. Bb2 {[%emt 0:00:26]} Bb7 {[%emt 0:00:55]} 5. Nc3 {[%emt 0:00:13]} d6 {[%emt 0:05:05]} 6. d4 {[%emt 0:01:02]} cxd4 {[%emt 0:00:29]} 7. Nxd4 {[%emt 0:00:49]} a6 {[%emt 0:01:58]} 8. Qe2 {[%emt 0:02:44]} Nf6 {[%emt 0:02:47]} 9. O-O-O {[%emt 0:01:42]} Nbd7 {[%emt 0:02:11]} 10. g4 {[%emt 0:00:59]} g6 {[%emt 0:16:44]} 11. f4 {[%emt 0:07:57]} Bg7 {[%emt 0:01:19]} 12. Bg2 {[%emt 0:05:42]} e5 {[%emt 0:06:49]} 13. Nf5 {[%emt 0:06:58]} gxf5 {[%emt 0:03:35]} 14. exf5 {[%emt 0:00:48]} Bxg2 {[%emt 0:02:04]} 15. Qxg2 {[%emt 0:00:18]} O-O {[%emt 0:08:30]} 16. fxe5 {[%emt 0:01:20]} Nxe5 {[%emt 0:03:42]} 17. g5 {[%emt 0:01:03]} Nfg4 {[%emt 0:01:03]} 18. f6 {[%emt 0:02:01]} Ne3 {[%emt 0:10:27]} 19. Qg3 {[%emt 0:06:22]} Nxd1 {[%emt 0:01:26]} 20. fxg7 {[%emt 0:00:34]} Re8 {[%emt 0:01:16]} 21. Rxd1 {[%emt 0:00:25]} Re6 {[%emt 0:06:20]} 22. Ne4 {[%emt 0:03:38]} Nd7 {[%emt 0:00:46]} 23. Nxd6 {[%emt 0:01:23]} f6 {[%emt 0:12:47]} 24. g6 {[%emt 0:03:24]} hxg6 {[%emt 0:05:50]} 25. Qh3 {[%emt 0:02:06]} Rxd6 {[%emt 0:01:41]} 26. Rxd6 {[%emt 0:00:17]} f5 {[%emt 0:00:29]} 27. Qh8+ {[%emt 0:05:05]} Kf7 {[%emt 0:00:06]} 28. g8=Q+ {[%emt 0:00:41]} Qxg8 {[%emt 0:00:05]} 29. Rxd7+ {[%emt 0:00:13]} Ke6 {[%emt 0:00:05]} 30. Qd4 {[%emt 0:00:27] Kd5} 1-0

[Event "94th Paris-ch  2019"]
[Site "Paris"]
[Date "2019.07.09"]
[Round "4.6"]
[White "Chalmeta Ugas, Ramon"]
[Black "Philippe, Guillaume"]
[Result "1/2-1/2"]
[ECO "B43"]
[WhiteElo "2232"]
[BlackElo "2344"]
[Annotator "NA"]
[PlyCount "138"]
[EventDate "2019.07.07"]
[EventType "swiss"]
[EventCountry "FRA"]
[SourceTitle "playchess.com"]
[Source "ChessBase"]
[SourceQuality "1"]
[TimeControl "5400+30"]

1. e4 {[%emt 0:08:44]} c5 {[%emt 0:00:18]} 2. Nf3 {[%emt 0:00:10]} e6 {[%emt 0:00:37]} 3. d4 {[%emt 0:02:57]} cxd4 {[%emt 0:00:09]} 4. Nxd4 {[%emt 0:00:07]} a6 {[%emt 0:00:19]} 5. Bd3 {[%emt 0:00:46]} Nf6 {[%emt 0:01:23]} 6. Nc3 {[%emt 0:01:46]} Qc7 {[%emt 0:00:46]} 7. Qe2 {[%emt 0:06:03]} d6 {[%emt 0:00:30]} 8. Be3 {[%emt 0:04:34]} b5 {[%emt 0:01:32]} 9. O-O {[%emt 0:08:41]} Bb7 {[%emt 0:00:12]} 10. a3 {[%emt 0:00:39]} Nbd7 {[%emt 0:10:02]} 11. Rad1 {[%emt 0:01:51]} Be7 {[%emt 0:00:22]} 12. f4 {[%emt 0:05:41]} O-O {[%emt 0:00:22]} 13. Kh1 {[%emt 0:07:09]} Rfe8 {[%emt 0:06:12]} 14. Nf3 {[%emt 0:02:18]} e5 {[%emt 0:02:09]} 15. fxe5 {[%emt 0:02:23]} dxe5 {[%emt 0:00:09]} 16. Bg5 {[%emt 0:02:45]} Nc5 {[%emt 0:06:52]} 17. Nh4 {[%emt 0:05:28]} Ncd7 {[%emt 0:12:21]} 18. Nf5 {[%emt 0:07:16]} Bd8 {[%emt 0:00:27]} 19. Rf2 {[%emt 0:09:12]} Qc5 {[%emt 0:07:36]} 20. Rdf1 {[%emt 0:03:00]} Re6 {[%emt 0:00:13]} 21. Qf3 {[%emt 0:04:30]} Qf8 {[%emt 0:04:36]} 22. Qh3 {[%emt 0:01:49]} Ne8 {[%emt 0:05:41]} 23. Bxd8 {[%emt 0:01:41]} Rxd8 {[%emt 0:02:26]} 24. Nd5 {[%emt 0:00:11]} Ndf6 {[%emt 0:07:26]} 25. Rf3 {[%emt 0:05:26]} Bxd5 {[%emt 0:09:15]} 26. exd5 {[%emt 0:00:07]} Rxd5 {[%emt 0:00:07]} 27. Ne3 {[%emt 0:06:16]} Rd8 {[%emt 0:04:09]} 28. Bf5 {[%emt 0:02:19]} Red6 {[%emt 0:04:24]} 29. c4 {[%emt 0:00:16]} e4 {[%emt 0:01:01]} 30. Rg3 {[%emt 0:00:35]} bxc4 {[%emt 0:00:25]} 31. Qh4 {[%emt 0:01:34]} Rd4 {[%emt 0:02:09]} 32. Bxh7+ {[%emt 0:00:34]} Nxh7 {[%emt 0:00:32]} 33. Rh3 {[%emt 0:00:05]} f6 {[%emt 0:03:10]} 34. Qxh7+ {[%emt 0:00:21]} Kf7 {[%emt 0:00:09]} 35. Rg3 {[%emt 0:01:04]} Qc5 {[%emt 0:02:04]} 36. h3 {[%emt 0:01:14]} Qe5 {[%emt 0:01:09]} 37. Nf5 {[%emt 0:01:58]} R4d7 {[%emt 0:02:49]} 38. Nxg7 {[%emt 0:01:25]} Nxg7 {[%emt 0:03:21]} 39. Rxg7+ {[%emt 0:00:07]} Ke6 {[%emt 0:00:07]} 40. Rxd7 {[%emt 0:00:18]} Rxd7 {[%emt 0:00:06]} 41. Qg8+ {[%emt 0:00:03]} Ke7 {[%emt 0:00:26]} 42. Qxc4 {[%emt 0:01:45]} a5 {[%emt 0:00:28]} 43. b4 {[%emt 0:01:03]} axb4 {[%emt 0:00:03]} 44. Qxb4+ {[%emt 0:00:11]} Kf7 {[%emt 0:00:38]} 45. a4 {[%emt 0:00:17]} f5 {[%emt 0:01:34]} 46. Re1 {[%emt 0:00:38]} Re7 {[%emt 0:00:49]} 47. a5 {[%emt 0:00:34]} f4 {[%emt 0:00:14]} 48. a6 {[%emt 0:00:34]} f3 {[%emt 0:00:47]} 49. gxf3 {[%emt 0:01:46]} Qg3 {[%emt 0:00:13]} 50. Qc4+ {[%emt 0:00:33]} Re6 {[%emt 0:00:44]} 51. Re2 {[%emt 0:01:55]} Qxh3+ {[%emt 0:00:50]} 52. Kg1 {[%emt 0:00:09]} Qg3+ {[%emt 0:00:17]} 53. Kf1 {[%emt 0:00:07]} Qh3+ {[%emt 0:00:52]} 54. Ke1 {[%emt 0:00:10]} Qh1+ {[%emt 0:00:32]} 55. Kd2 {[%emt 0:00:08]} Qxf3 {[%emt 0:00:17]} 56. a7 {[%emt 0:00:32]} e3+ {[%emt 0:00:13]} 57. Kc2 {[%emt 0:00:31]} Qf5+ {[%emt 0:00:19]} 58. Kc3 {[%emt 0:00:59]} Qa5+ {[%emt 0:00:26]} 59. Kd3 {[%emt 0:01:05]} Qa3+ {[%emt 0:00:16]} 60. Kc2 {[%emt 0:00:11]} Qxa7 {[%emt 0:00:56]} 61. Qf4+ {[%emt 0:00:07]} Ke8 {[%emt 0:00:22]} 62. Rh2 {[%emt 0:01:15]} Qc5+ {[%emt 0:01:14]} 63. Kd3 {[%emt 0:00:23]} Rd6+ {[%emt 0:00:33]} 64. Ke2 {[%emt 0:00:02]} Rd2+ {[%emt 0:00:55]} 65. Kf3 {[%emt 0:00:06]} Qd5+ {[%emt 0:00:08]} 66. Kg3 {[%emt 0:00:19]} Qg8+ {[%emt 0:00:42]} 67. Kf3 {[%emt 0:00:12]} Qd5+ {[%emt 0:00:30]} 68. Kg3 {[%emt 0:00:02]} Qg8+ {[%emt 0:00:52]} 69. Kf3 {[%emt 0:00:01]} Qd5+ {[%emt 0:00:30]} 1/2-1/2

[Event "94th Paris-ch  2019"]
[Site "Paris"]
[Date "2019.07.09"]
[Round "4.7"]
[White "Bonte, Andrei-Mihai"]
[Black "Sanchez, Louis"]
[Result "1/2-1/2"]
[ECO "D37"]
[WhiteElo "2337"]
[BlackElo "2316"]
[Annotator "NA"]
[PlyCount "79"]
[EventDate "2019.07.07"]
[EventType "swiss"]
[EventCountry "FRA"]
[SourceTitle "playchess.com"]
[Source "ChessBase"]
[SourceQuality "1"]
[TimeControl "5400+30"]

1. Nf3 {[%emt 0:04:49]} Nf6 {[%emt 0:00:44]} 2. c4 {[%emt 0:00:37]} e6 {[%emt 0:02:43]} 3. d4 {[%emt 0:00:22]} d5 {[%emt 0:00:37]} 4. Nc3 {[%emt 0:00:21]} Be7 {[%emt 0:00:15]} 5. Bf4 {[%emt 0:00:53]} O-O {[%emt 0:00:31]} 6. e3 {[%emt 0:00:15]} Nbd7 {[%emt 0:02:14]} 7. a3 {[%emt 0:01:43]} c5 {[%emt 0:00:55]} 8. cxd5 {[%emt 0:00:57]} Nxd5 {[%emt 0:00:27]} 9. Nxd5 {[%emt 0:00:07]} exd5 {[%emt 0:00:04]} 10. dxc5 {[%emt 0:01:12]} Nxc5 {[%emt 0:00:19]} 11. Be5 {[%emt 0:05:17]} Bf6 {[%emt 0:00:40]} 12. Rc1 {[%emt 0:12:21]} Ne4 {[%emt 0:05:34]} 13. Bxf6 {[%emt 0:10:24]} Qxf6 {[%emt 0:00:21]} 14. Qd4 {[%emt 0:00:06]} Bg4 {[%emt 0:08:16]} 15. Qxf6 {[%emt 0:05:20]} Nxf6 {[%emt 0:01:49]} 16. Nd4 {[%emt 0:06:42]} Rac8 {[%emt 0:05:09]} 17. Rxc8 {[%emt 0:05:33]} Rxc8 {[%emt 0:00:17]} 18. f3 {[%emt 0:00:05]} Bd7 {[%emt 0:00:14]} 19. Kd2 {[%emt 0:00:22]} h5 {[%emt 0:02:04]} 20. Bd3 {[%emt 0:06:02]} Kf8 {[%emt 0:01:59]} 21. h4 {[%emt 0:05:41]} Ke7 {[%emt 0:08:17]} 22. Ke2 {[%emt 0:02:06]} Rc5 {[%emt 0:02:46]} 23. Ra1 {[%emt 0:01:54]} g6 {[%emt 0:01:36]} 24. Kd2 {[%emt 0:04:05]} Rc8 {[%emt 0:03:56]} 25. Bc2 {[%emt 0:02:43]} Kd6 {[%emt 0:00:30]} 26. Rd1 {[%emt 0:00:41]} Rc5 {[%emt 0:02:01]} 27. b4 {[%emt 0:02:26]} Rc8 {[%emt 0:00:59]} 28. Bb3 {[%emt 0:00:05]} Ke7 {[%emt 0:05:54]} 29. Rf1 {[%emt 0:06:43]} Rc7 {[%emt 0:00:35]} 30. Kd3 {[%emt 0:04:37]} Rc8 {[%emt 0:00:29]} 31. Ra1 {[%emt 0:00:44]} Rc7 {[%emt 0:01:21]} 32. a4 {[%emt 0:00:07]} a5 {[%emt 0:04:30]} 33. bxa5 {[%emt 0:03:09]} Rc5 {[%emt 0:00:20]} 34. Rb1 {[%emt 0:06:20]} Rxa5 {[%emt 0:01:17]} 35. Bd1 {[%emt 0:00:08]} Bxa4 {[%emt 0:07:48]} 36. Rxb7+ {[%emt 0:00:11]} Kf8 {[%emt 0:00:17]} 37. Bxa4 {[%emt 0:01:11]} Rxa4 {[%emt 0:00:02]} 38. Nc6 {[%emt 0:00:22]} Ng8 {[%emt 0:06:03]} 39. Nb4 {[%emt 0:02:22]} Nh6 {[%emt 0:01:08]} 40. Nxd5 {[%emt 0:01:38]} 1/2-1/2